fUSD/lending_fUSD_20250206
["ID","MTS","AMOUNT","RATE_DAILY","PERIOD"]
[351985200,1738867856201,-390.96906098,0.00017023,2]
[351985201,1738867856211,-7427.78751643,0.00017032,2]
[351985202,1738867856227,-2631.77610288,0.00017032,2]
[351985203,1738867856308,-376.42012793,0.00016438,2]
[351985204,1738867856319,-123.57987207,0.00016438,2]
[351985205,1738867856329,-1821.54610672,0.00017032,2]
[351985206,1738867856341,-482.16,0.00017032,2]
[351985207,1738867856353,-526.75623053,0.00017032,2]
[351985208,1738867856365,-22918.42222423,0.00017032,2]
[351985209,1738867856386,-1900.070417,0.00017032,2]
[351985210,1738867856400,-9747.14809653,0.00017032,2]
[351985211,1738867856411,-12723.72925464,0.00017044,2]
[351985212,1738867856422,-737.62353093,0.00017081,2]
[351985213,1738867856432,-150.0,0.000171,2]
[351985214,1738867856442,-500.0,0.00017117,2]
[351985215,1738867856452,-500.0,0.00017117,2]
[351985216,1738867856461,-500.0,0.00017117,2]
[351985217,1738867856471,-500.0,0.00017117,2]
[351985218,1738867856481,-717.11,0.00017117,2]
[351985219,1738867856491,-500.0,0.00017118,2]
[351985220,1738867856500,-500.0,0.00017118,2]
[351985221,1738867856510,-638.99,0.00017118,2]
[351985222,1738867856519,-843.98,0.00017118,2]
[351985223,1738867856530,-656.15,0.00017118,2]
[351985224,1738867856540,-686.49,0.00017118,2]
[351985225,1738867856549,-500.0,0.00017118,2]
[351985226,1738867856559,-607.76,0.00017118,2]
[351985227,1738867856568,-500.0,0.00017118,2]
[351985228,1738867856578,-601.46,0.00017118,2]
[351985229,1738867856587,-500.0,0.00017118,2]
[351985230,1738867856597,-673.03,0.00017118,2]
[351985231,1738867856607,-649.99,0.00017118,2]
[351985232,1738867856616,-500.0,0.00017118,2]
[351985233,1738867856625,-627.95,0.00017118,2]
[351985234,1738867856635,-500.0,0.00017118,2]
[351985235,1738867856644,-850.37,0.00017118,2]
[351985236,1738867856654,-500.0,0.00017118,2]
[351985237,1738867856664,-500.0,0.00017118,2]
[351985238,1738867856674,-517.41,0.00017118,2]
[351985239,1738867856684,-500.0,0.00017118,2]
[351985240,1738867856693,-556.84,0.00017118,2]
[351985241,1738867856703,-500.0,0.00017118,2]
[351985242,1738867856712,-500.0,0.00017122,2]
[351985243,1738867856723,-652.13,0.00017122,2]
[351985244,1738867856733,-889.24,0.00017122,2]
[351985245,1738867856744,-500.0,0.00017122,2]
[351985246,1738867856754,-1376.12,0.00017122,2]
[351985247,1738867856764,-1350.96,0.00017122,2]
[351985248,1738867856774,-1057.77,0.00017122,2]
[351985249,1738867856785,-1205.55,0.00017122,2]
[351985250,1738867856794,-500.0,0.00017122,2]
[351985251,1738867856803,-1304.81,0.00017122,2]
[351985252,1738867856813,-3491.37,0.00017122,2]
[351985253,1738867856824,-1042.69,0.00017122,2]
[351985254,1738867856834,-1176.95,0.00017122,2]
[351985255,1738867856844,-827.43,0.00017122,2]
[351985256,1738867856854,-1058.21,0.00017122,2]
[351985257,1738867856865,-500.0,0.00017122,2]
[351985258,1738867856875,-861.36,0.00017122,2]
[351985259,1738867856885,-628.75,0.00017122,2]
[351985260,1738867856895,-1003.36,0.00017122,2]
[351985261,1738867856905,-1023.55,0.00017122,2]
[351985262,1738867856914,-1000.0,0.00017122,2]
[351985263,1738867856924,-810.56,0.00017122,2]
[351985264,1738867856933,-500.0,0.00017122,2]
[351985265,1738867856943,-500.0,0.00017123,2]
[351985266,1738867856953,-272.89,0.00017123,2]
[351985267,1738867856963,-500.0,0.00017123,2]
[351985268,1738867856975,-500.0,0.00017123,2]
[351985269,1738867856986,-500.0,0.00017123,2]
[351985270,1738867856995,-500.0,0.00017123,2]
[351985271,1738867857005,-500.0,0.00017123,2]
[351985272,1738867857015,-517.65,0.00017123,2]
[351985273,1738867857024,-500.0,0.00017123,2]
[351985274,1738867857035,-642.03,0.00017123,2]
[351985275,1738867857044,-500.0,0.00017123,2]
[351985276,1738867857054,-500.0,0.00017123,2]
[351985277,1738867857064,-500.0,0.00017123,2]
[351985278,1738867857074,-500.0,0.00017123,2]
[351985279,1738867857084,-500.0,0.00017123,2]
[351985280,1738867857093,-500.0,0.00017123,2]
[351985281,1738867857103,-512.4,0.00017123,2]
[351985282,1738867857113,-500.0,0.00017123,2]
[351985283,1738867857123,-500.0,0.00017123,2]
[351985284,1738867857136,-500.0,0.00017123,2]
[351985285,1738867857146,-500.0,0.00017123,2]
[351985286,1738867857156,-738.71,0.00017123,2]
[351985287,1738867857167,-347.27685625,0.00017123,2]
[351985288,1738867857177,-500.0,0.00017123,2]
[351985289,1738867857187,-500.0,0.00017123,2]
[351985290,1738867857196,-500.0,0.00017123,2]
[351985291,1738867857210,-500.0,0.00017123,2]
[351985292,1738867857220,-500.0,0.00017123,2]
[351985293,1738867857229,-500.0,0.00017123,2]
[351985294,1738867857239,-389.80229128,0.00017123,2]
[351985295,1738867857398,-500.0,0.00016438,2]
[351985296,1738867857408,-500.0,0.00016438,2]
[351985297,1738867857418,-500.0,0.00016575,2]
[351985298,1738867857427,-500.0,0.00016712,2]
[351985299,1738867857437,-123.21770872,0.00017123,2]
[351985300,1738867857447,-500.0,0.00017123,2]
[351985301,1738867857458,-500.0,0.00017123,2]
[351985302,1738867857468,-500.0,0.00017123,2]
[351985303,1738867857478,-500.0,0.00017123,2]
[351985304,1738867857488,-500.0,0.00017123,2]
[351985305,1738867857498,-933.14,0.00017123,2]
[351985306,1738867857508,-500.0,0.00017123,2]
[351985307,1738867857519,-500.0,0.00017123,2]
[351985308,1738867857529,-500.0,0.00017123,2]
[351985309,1738867857540,-500.0,0.00017123,2]
[351985310,1738867857550,-500.0,0.00017123,2]
[351985311,1738867857560,-500.0,0.00017123,2]
[351985312,1738867857570,-500.0,0.00017123,2]
[351985313,1738867857580,-500.0,0.00017123,2]
[351985314,1738867857590,-500.0,0.00017123,2]
[351985315,1738867857600,-807.79,0.00017123,2]
[351985316,1738867857610,-703.22,0.00017123,2]
[351985317,1738867857619,-500.0,0.00017123,2]
[351985318,1738867857629,-766.23,0.00017123,2]
[351985319,1738867857639,-513.79,0.00017123,2]
[351985320,1738867857649,-500.0,0.00017123,2]
[351985321,1738867857659,-500.0,0.00017123,2]
[351985322,1738867857669,-634.46,0.00017123,2]
[351985323,1738867857679,-500.0,0.00017123,2]
[351985324,1738867857689,-500.0,0.00017123,2]
[351985325,1738867857699,-500.0,0.00017123,2]
[351985326,1738867857709,-500.0,0.00017123,2]
[351985327,1738867857719,-500.0,0.00017123,2]
[351985328,1738867857728,-500.0,0.00017123,2]
[351985329,1738867857738,-500.0,0.00017123,2]
[351985330,1738867857748,-500.0,0.00017123,2]
[351985331,1738867857758,-500.0,0.00017123,2]
[351985332,1738867857767,-516.25,0.00017123,2]
[351985333,1738867857777,-500.0,0.00017123,2]
[351985334,1738867857788,-500.0,0.00017123,2]
[351985335,1738867857798,-500.0,0.00017123,2]
[351985336,1738867857807,-500.0,0.00017123,2]
[351985337,1738867857817,-518.89,0.00017123,2]
[351985338,1738867857827,-500.0,0.00017123,2]
[351985339,1738867857837,-500.0,0.00017123,2]
[351985340,1738867857847,-690.07,0.00017123,2]
[351985341,1738867857857,-500.0,0.00017123,2]
[351985342,1738867857867,-500.0,0.00017123,2]
[351985343,1738867857876,-500.0,0.00017123,2]
[351985344,1738867857886,-500.0,0.00017123,2]
[351985345,1738867857895,-500.0,0.00017123,2]
[351985346,1738867857905,-500.0,0.00017123,2]
[351985347,1738867857915,-500.0,0.00017123,2]
[351985348,1738867857925,-500.0,0.00017123,2]
[351985349,1738867857935,-587.86,0.00017123,2]
[351985350,1738867857945,-500.0,0.00017123,2]
[351985351,1738867857955,-455.44,0.00017123,2]
[351985352,1738867857966,-598.72,0.00017123,2]
[351985353,1738867857977,-500.0,0.00017123,2]
[351985354,1738867857987,-500.0,0.00017123,2]
[351985355,1738867857997,-500.0,0.00017123,2]
[351985356,1738867858009,-500.0,0.00017123,2]
[351985357,1738867858020,-500.0,0.00017123,2]
[351985358,1738867858030,-500.0,0.00017123,2]
[351985359,1738867858041,-500.0,0.00017123,2]
[351985360,1738867858051,-586.04,0.00017123,2]
[351985361,1738867858061,-1618.56,0.00017123,2]
[351985362,1738867858071,-210.358937,0.00017123,2]
[351985363,1738867858081,-500.0,0.00017123,2]
[351985364,1738867858091,-510.12,0.00017123,2]
[351985365,1738867858101,-500.0,0.00017123,2]
[351985366,1738867858111,-713.81,0.00017123,2]
[351985367,1738867858123,-500.0,0.00017123,2]
[351985368,1738867858136,-500.0,0.00017123,2]
[351985369,1738867858145,-724.59,0.00017123,2]
[351985370,1738867858155,-500.0,0.00017123,2]
[351985371,1738867858165,-500.0,0.00017123,2]
[351985372,1738867858176,-500.0,0.00017123,2]
[351985373,1738867858186,-587.97,0.00017123,2]
[351985374,1738867858195,-520.11,0.00017123,2]
[351985375,1738867858208,-154.121061,0.00017123,2]
[351985376,1738867858218,-737.05,0.00017123,2]
[351985377,1738867858227,-610.49,0.00017123,2]
[351985378,1738867858237,-500.0,0.00017123,2]
[351985379,1738867858246,-500.0,0.00017123,2]
[351985380,1738867858256,-500.0,0.00017123,2]
[351985381,1738867858266,-520.36,0.00017123,2]
[351985382,1738867858276,-500.0,0.00017123,2]
[351985383,1738867858286,-697.56,0.00017123,2]
[351985384,1738867858296,-500.0,0.00017123,2]
[351985385,1738867858305,-500.0,0.00017123,2]
[351985386,1738867858315,-81.53675522,0.00017123,2]
[351985387,1738867858383,-418.46324478,0.00017123,2]
[351985388,1738867858393,-500.0,0.00017123,2]
[351985389,1738867858404,-500.0,0.00017123,2]
[351985390,1738867858414,-500.0,0.00017123,2]
[351985391,1738867858424,-500.0,0.00017123,2]
[351985392,1738867858434,-500.0,0.00017123,2]
[351985393,1738867858443,-554.3,0.00017123,2]
[351985394,1738867858453,-500.0,0.00017123,2]
[351985395,1738867858463,-500.0,0.00017123,2]
[351985396,1738867858473,-500.0,0.00017123,2]
[351985397,1738867858483,-500.0,0.00017123,2]
[351985398,1738867858492,-807.7,0.00017123,2]
[351985399,1738867858502,-134.32591022,0.00017123,2]
[351985400,1738867858514,-365.67408978,0.00017123,2]
[351985401,1738867858524,-500.0,0.00017123,2]
[351985402,1738867858534,-902.38,0.00017123,2]
[351985403,1738867858543,-500.0,0.00017123,2]
[351985404,1738867858553,-500.0,0.00017123,2]
[351985405,1738867858563,-500.0,0.00017123,2]
[351985406,1738867858572,-543.18,0.00017123,2]
[351985407,1738867858582,-191.4,0.00017123,2]
[351985408,1738867858592,-500.0,0.00017123,2]
[351985409,1738867858602,-500.0,0.00017123,2]
[351985410,1738867858611,-572.5,0.00017123,2]
[351985411,1738867858621,-500.0,0.00017123,2]
[351985412,1738867858631,-286.25,0.00017123,2]
[351985413,1738867858641,-500.0,0.00017123,2]
[351985414,1738867858651,-500.0,0.00017123,2]
[351985415,1738867858661,-500.0,0.00017123,2]
[351985416,1738867858671,-847.5,0.00017123,2]
[351985417,1738867858680,-672.14,0.00017123,2]
[351985418,1738867858689,-500.0,0.00017123,2]
[351985419,1738867858699,-500.0,0.00017123,2]
[351985420,1738867858709,-500.0,0.00017123,2]
[351985421,1738867858718,-500.0,0.00017123,2]
[351985422,1738867858728,-500.0,0.00017123,2]
[351985423,1738867858737,-500.0,0.00017123,2]
[351985424,1738867858747,-500.0,0.00017123,2]
[351985425,1738867858757,-500.0,0.00017123,2]
[351985426,1738867858767,-500.0,0.00017123,2]
[351985427,1738867858776,-826.95,0.00017123,2]
[351985428,1738867858787,-500.0,0.00017123,2]
[351985429,1738867858796,-908.0,0.00017123,2]
[351985430,1738867858806,-500.0,0.00017123,2]
[351985431,1738867858821,-500.0,0.00017123,2]
[351985432,1738867858831,-500.0,0.00017123,2]
[351985433,1738867858840,-305.33672423,0.00017123,2]
[351985434,1738867858857,-194.66327577,0.00017123,2]
[351985435,1738867858866,-722.65,0.00017123,2]
[351985436,1738867858876,-54.65772423,0.00017123,2]
[351985437,1738867858888,-445.34227577,0.00017123,2]
[351985438,1738867858898,-129.23172423,0.00017123,2]
[351985439,1738867858914,-430.14827577,0.00017123,2]
[351985440,1738867858924,-500.0,0.00017123,2]
[351985441,1738867858934,-653.5,0.00017123,2]
[351985442,1738867858943,-500.0,0.00017123,2]
[351985443,1738867858952,-647.68,0.00017123,2]
[351985444,1738867858962,-500.0,0.00017123,2]
[351985445,1738867858971,-500.0,0.00017123,2]
[351985446,1738867858981,-500.0,0.00017123,2]
[351985447,1738867858991,-757.82,0.00017123,2]
[351985448,1738867859001,-500.0,0.00017123,2]
[351985449,1738867859010,-1035.74,0.00017123,2]
[351985450,1738867859020,-500.0,0.00017123,2]
[351985451,1738867859030,-1369.64,0.00017123,2]
[351985452,1738867859041,-500.0,0.00017123,2]
[351985453,1738867859050,-775.72,0.00017123,2]
[351985454,1738867859059,-864.0,0.00017123,2]
[351985455,1738867859069,-736.48,0.00017123,2]
[351985456,1738867859079,-1197.28,0.00017123,2]
[351985457,1738867859088,-500.0,0.00017123,2]
[351985458,1738867859098,-1135.81,0.00017123,2]
[351985459,1738867859108,-500.0,0.00017123,2]
[351985460,1738867859118,-500.0,0.00017123,2]
[351985461,1738867859129,-600.58,0.00017123,2]
[351985462,1738867859142,-526.09,0.00017123,2]
[351985463,1738867859151,-500.0,0.00017123,2]
[351985464,1738867859161,-245.20971274,0.00017123,2]
[351985465,1738867859171,-567.42,0.00017123,2]
[351985466,1738867859182,-514.34,0.00017123,2]
[351985467,1738867859192,-690.39,0.00017123,2]
[351985468,1738867859201,-1146.91,0.00017123,2]
[351985469,1738867859212,-578.84,0.00017123,2]
[351985470,1738867859222,-500.0,0.00017123,2]
[351985471,1738867859233,-500.0,0.00017123,2]
[351985472,1738867859242,-901.34,0.00017123,2]
[351985473,1738867859252,-734.86,0.00017123,2]
[351985474,1738867859261,-767.8,0.00017123,2]
[351985475,1738867859271,-500.0,0.00017123,2]
[351985476,1738867859280,-500.0,0.00017123,2]
[351985477,1738867859291,-500.0,0.00017123,2]
[351985478,1738867859301,-500.0,0.00017123,2]
[351985479,1738867859310,-599.31,0.00017123,2]
[351985480,1738867859319,-706.15,0.00017123,2]
[351985481,1738867859330,-1595.4,0.00017123,2]
[351985482,1738867859339,-341.06892373,0.00017123,2]
[351985483,1738867859348,-562.03,0.00017123,2]
[351985484,1738867859358,-537.82,0.00017123,2]
[351985485,1738867859367,-764.68,0.00017123,2]
[351985486,1738867859376,-2169.81,0.00017123,2]
[351985487,1738867859386,-2028.65,0.00017123,2]
[351985488,1738867859396,-500.0,0.00017123,2]
[351985489,1738867859406,-500.0,0.00017123,2]
[351985490,1738867859415,-724.86,0.00017123,2]
[351985491,1738867859426,-917.83,0.00017123,2]
[351985492,1738867859436,-1019.86,0.00017123,2]
[351985493,1738867859446,-1039.14,0.00017123,2]
[351985494,1738867859456,-954.62,0.00017123,2]
[351985495,1738867859467,-500.0,0.00017123,2]
[351985496,1738867859477,-1567.45,0.00017123,2]
[351985497,1738867859487,-931.49,0.00017123,2]
[351985498,1738867859497,-500.0,0.00017123,2]
[351985499,1738867859507,-500.0,0.00017123,2]
[351985500,1738867859516,-963.56,0.00017123,2]
[351985501,1738867859526,-1053.66,0.00017123,2]
[351985502,1738867859539,-1242.56,0.00017123,2]
[351985503,1738867859549,-783.88,0.00017123,2]
[351985504,1738867859558,-500.0,0.00017123,2]
[351985505,1738867859568,-788.64,0.00017123,2]
[351985506,1738867859577,-500.0,0.00017123,2]
[351985507,1738867859586,-517.64,0.00017123,2]
[351985508,1738867859596,-746.18,0.00017123,2]
[351985509,1738867859605,-536.31,0.00017123,2]
[351985510,1738867859615,-500.0,0.00017123,2]
[351985511,1738867859626,-500.0,0.00017123,2]
[351985512,1738867859635,-581.47,0.00017123,2]
[351985513,1738867859645,-615.1,0.00017123,2]
[351985514,1738867859655,-3238.11,0.00017123,2]
[351985515,1738867859667,-1033.64,0.00017123,2]
[351985516,1738867859679,-825.6,0.00017123,2]
[351985517,1738867859689,-1473.97,0.00017123,2]
[351985518,1738867859698,-547.15,0.00017123,2]
[351985519,1738867859707,-1199.51,0.00017123,2]
[351985520,1738867859716,-500.0,0.00017123,2]
[351985521,1738867859726,-500.0,0.00017123,2]
[351985522,1738867859736,-1581.33,0.00017123,2]
[351985523,1738867859746,-2018.68,0.00017123,2]
[351985524,1738867859755,-500.0,0.00017123,2]
[351985525,1738867859764,-500.0,0.00017123,2]
[351985526,1738867859774,-637.66823242,0.00017123,2]
[351985527,1738867859786,-2039.23,0.00017123,2]
[351985528,1738867859795,-1529.26,0.00017123,2]
[351985529,1738867859804,-500.0,0.00017123,2]
[351985530,1738867859814,-899.5,0.00017123,2]
[351985531,1738867859823,-1421.24,0.00017123,2]
[351985532,1738867859833,-1045.4,0.00017123,2]
[351985533,1738867859843,-1066.46,0.00017123,2]
[351985534,1738867859853,-500.0,0.00017123,2]
[351985535,1738867859862,-500.0,0.00017123,2]
[351985536,1738867859873,-500.0,0.00017123,2]
[351985537,1738867859883,-881.11,0.00017123,2]
[351985538,1738867859892,-500.0,0.00017123,2]
[351985539,1738867859902,-2242.72,0.00017123,2]
[351985540,1738867859911,-500.0,0.00017123,2]
[351985541,1738867859920,-500.0,0.00017123,2]
[351985542,1738867859930,-603.07,0.00017123,2]
[351985543,1738867859940,-852.06,0.00017123,2]
[351985544,1738867859949,-807.95,0.00017123,2]
[351985545,1738867859959,-500.0,0.00017123,2]
[351985546,1738867859969,-574.95,0.00017123,2]
[351985547,1738867859979,-1994.94,0.00017123,2]
[351985548,1738867859988,-500.0,0.00017123,2]
[351985549,1738867859998,-500.0,0.00017123,2]
[351985550,1738867860008,-1045.5,0.00017123,2]
[351985551,1738867860019,-568.56,0.00017123,2]
[351985552,1738867860028,-770.13,0.00017123,2]
[351985553,1738867860039,-500.0,0.00017123,2]
[351985554,1738867860049,-908.76,0.00017123,2]
[351985555,1738867860059,-1617.59,0.00017123,2]
[351985556,1738867860068,-500.0,0.00017123,2]
[351985557,1738867860078,-1114.4,0.00017123,2]
[351985558,1738867860089,-500.0,0.00017123,2]
[351985559,1738867860099,-500.0,0.00017123,2]
[351985560,1738867860108,-762.98,0.00017123,2]
[351985561,1738867860118,-500.0,0.00017123,2]
[351985562,1738867860131,-518.5,0.00017123,2]
[351985563,1738867860142,-553.73,0.00017123,2]
[351985564,1738867860152,-903.53,0.00017123,2]
[351985565,1738867860162,-500.0,0.00017123,2]
[351985566,1738867860174,-1477.93,0.00017123,2]
[351985567,1738867860184,-500.0,0.00017123,2]
[351985568,1738867860193,-47455.66669432,0.00017206,2]
[351985569,1738867860203,-12723.72925464,0.00017216,2]
[351985570,1738867860213,-300.0,0.00017217,2]
[351985571,1738867860224,-500.0,0.00017254,2]
[351985572,1738867860234,-500.0,0.00017254,2]
[351985573,1738867860244,-500.0,0.00017254,2]
[351985574,1738867860255,-500.0,0.00017254,2]
[351985575,1738867860266,-717.11,0.00017254,2]
[351985576,1738867860276,-500.0,0.00017255,2]
[351985577,1738867860290,-638.99,0.00017255,2]
[351985578,1738867860301,-843.98,0.00017255,2]
[351985579,1738867860311,-656.15,0.00017255,2]
[351985580,1738867860322,-686.49,0.00017255,2]
[351985581,1738867860332,-500.0,0.00017255,2]
[351985582,1738867860342,-607.76,0.00017255,2]
[351985583,1738867860352,-500.0,0.00017255,2]
[351985584,1738867860363,-601.46,0.00017255,2]
[351985585,1738867860374,-500.0,0.00017255,2]
[351985586,1738867860384,-673.03,0.00017255,2]
[351985587,1738867860394,-649.99,0.00017255,2]
[351985588,1738867860404,-500.0,0.00017255,2]
[351985589,1738867860414,-627.95,0.00017255,2]
[351985590,1738867860424,-500.0,0.00017255,2]
[351985591,1738867860433,-850.37,0.00017255,2]
[351985592,1738867860443,-500.0,0.00017255,2]
[351985593,1738867860453,-500.0,0.00017255,2]
[351985594,1738867860462,-517.41,0.00017255,2]
[351985595,1738867860472,-500.0,0.00017255,2]
[351985596,1738867860481,-556.84,0.00017255,2]
[351985597,1738867860491,-500.0,0.00017255,2]
[351985598,1738867860501,-500.0,0.00017259,2]
[351985599,1738867860511,-652.13,0.00017259,2]
[351985600,1738867860521,-889.24,0.00017259,2]
[351985601,1738867860531,-500.0,0.00017259,2]
[351985602,1738867860546,-1376.12,0.00017259,2]
[351985603,1738867860557,-1350.96,0.00017259,2]
[351985604,1738867860567,-1057.77,0.00017259,2]
[351985605,1738867860578,-1205.55,0.00017259,2]
[351985606,1738867860588,-500.0,0.00017259,2]
[351985607,1738867860599,-1304.81,0.00017259,2]
[351985608,1738867860609,-3491.37,0.00017259,2]
[351985609,1738867860619,-1042.69,0.00017259,2]
[351985610,1738867860629,-1176.95,0.00017259,2]
[351985611,1738867860639,-827.43,0.00017259,2]
[351985612,1738867860648,-1058.21,0.00017259,2]
[351985613,1738867860658,-500.0,0.00017259,2]
[351985614,1738867860669,-861.36,0.00017259,2]
[351985615,1738867860679,-628.75,0.00017259,2]
[351985616,1738867860689,-1023.55,0.00017259,2]
[351985617,1738867860699,-340.03,0.00017259,2]
[351985618,1738867860710,-810.56,0.00017259,2]
[351985619,1738867860720,-471.00330999,0.00017259,2]
[351985620,1738867860731,-500.0,0.0001726,2]
[351985621,1738867860740,-500.0,0.0001726,2]
[351985622,1738867860750,-500.0,0.0001726,2]
[351985623,1738867860760,-500.0,0.0001726,2]
[351985624,1738867860771,-500.0,0.0001726,2]
[351985625,1738867860784,-500.0,0.0001726,2]
[351985626,1738867860800,-517.65,0.0001726,2]
[351985627,1738867860811,-500.0,0.0001726,2]
[351985628,1738867860821,-642.03,0.0001726,2]
[351985629,1738867860831,-500.0,0.0001726,2]
[351985630,1738867860842,-500.0,0.0001726,2]
[351985631,1738867860851,-500.0,0.0001726,2]
[351985632,1738867860862,-288.60526992,0.0001726,2]
[351985633,1738867860872,-500.0,0.0001726,2]
[351985634,1738867860884,-500.0,0.0001726,2]
[351985635,1738867860895,-500.0,0.0001726,2]
[351985636,1738867860905,-512.4,0.0001726,2]
[351985637,1738867860915,-500.0,0.0001726,2]
[351985638,1738867860925,-500.0,0.0001726,2]
[351985639,1738867860935,-500.0,0.0001726,2]
[351985640,1738867860944,-738.71,0.0001726,2]
[351985641,1738867860954,-481.37983645,0.0001726,2]
[351985642,1738867860964,-500.0,0.0001726,2]
[351985643,1738867860974,-500.0,0.0001726,2]
[351985644,1738867860985,-500.0,0.0001726,2]
[351985645,1738867860995,-500.0,0.0001726,2]
[351985646,1738867861004,-500.0,0.0001726,2]
[351985647,1738867861014,-513.02,0.0001726,2]
[351985648,1738867861023,-500.0,0.0001726,2]
[351985649,1738867861038,-500.0,0.0001726,2]
[351985650,1738867861048,-203.09,0.0001726,2]
[351985651,1738867861058,-500.0,0.0001726,2]
[351985652,1738867861068,-500.0,0.0001726,2]
[351985653,1738867861078,-933.14,0.0001726,2]
[351985654,1738867861089,-500.0,0.0001726,2]
[351985655,1738867861099,-500.0,0.0001726,2]
[351985656,1738867861109,-493.46797267,0.0001726,2]
[351985657,1738867861119,-292.07327745,0.0001726,2]
[351985658,1738867861131,-500.0,0.0001726,2]
[351985659,1738867861146,-500.0,0.0001726,2]
[351985660,1738867861155,-500.0,0.0001726,2]
[351985661,1738867861165,-500.0,0.0001726,2]
[351985662,1738867861177,-807.79,0.0001726,2]
[351985663,1738867861188,-703.22,0.0001726,2]
[351985664,1738867861198,-500.0,0.0001726,2]
[351985665,1738867861209,-766.23,0.0001726,2]
[351985666,1738867861220,-513.79,0.0001726,2]
[351985667,1738867861231,-500.0,0.0001726,2]
[351985668,1738867861242,-634.46,0.0001726,2]
[351985669,1738867861252,-500.0,0.0001726,2]
[351985670,1738867861262,-500.0,0.0001726,2]
[351985671,1738867861272,-500.0,0.0001726,2]
[351985672,1738867861284,-500.0,0.0001726,2]
[351985673,1738867861298,-500.0,0.0001726,2]
[351985674,1738867861308,-500.0,0.0001726,2]
[351985675,1738867861319,-500.0,0.0001726,2]
[351985676,1738867861329,-500.0,0.0001726,2]
[351985677,1738867861339,-500.0,0.0001726,2]
[351985678,1738867861350,-516.25,0.0001726,2]
[351985679,1738867861360,-500.0,0.0001726,2]
[351985680,1738867861370,-500.0,0.0001726,2]
[351985681,1738867861381,-500.0,0.0001726,2]
[351985682,1738867861391,-518.89,0.0001726,2]
[351985683,1738867861400,-500.0,0.0001726,2]
[351985684,1738867861410,-500.0,0.0001726,2]
[351985685,1738867861420,-690.07,0.0001726,2]
[351985686,1738867861431,-500.0,0.0001726,2]
[351985687,1738867861442,-500.01542799,0.0001726,2]
[351985688,1738867861452,-500.0,0.0001726,2]
[351985689,1738867861462,-500.0,0.0001726,2]
[351985690,1738867861473,-500.0,0.0001726,2]
[351985691,1738867861483,-500.0,0.0001726,2]
[351985692,1738867861495,-490.93193303,0.0001726,2]
[351985693,1738867861505,-500.0,0.0001726,2]
[351985694,1738867861514,-587.86,0.0001726,2]
[351985695,1738867861524,-500.0,0.0001726,2]
[351985696,1738867861539,-598.72,0.0001726,2]
[351985697,1738867861549,-500.0,0.0001726,2]
[351985698,1738867861560,-500.0,0.0001726,2]
[351985699,1738867861570,-500.0,0.0001726,2]